bitfinex-derivatives/quotes_SOLF0:USTF0_20250211
["timestamp","ask_amount","ask_price","bid_price","bid_amount"]
[1739272227409,4.9482,202.06,202.05,7.75e-06]
[1739272227614,4.9493,202.02,201.98,1.523]
[1739272227908,82.46286765,202.19,201.98,1.523]
[1739272227909,8.42441284,202.01,201.98,1.523]
[1739272228108,8.42441284,202.01,201.94,8.42441284]
[1739272228805,0.03531243,202.0,201.95,0.03306944]
[1739272229206,8.42441284,201.99,201.95,0.03306944]
[1739272230308,8.42441284,201.97,201.95,0.03306944]
[1739272230809,13.37491284,201.97,201.95,0.03306944]
[1739272231310,8.42441284,201.97,201.95,0.03306944]
[1739272232710,0.03531243,202.0,201.95,0.03306944]
[1739272233511,8.42441284,201.99,201.95,0.03306944]
[1739272235509,8.42441284,201.99,201.96,4.9506]
[1739272238517,8.42441284,201.99,201.95,0.03306944]
[1739272238720,0.03531243,202.0,201.99,4.9499]
[1739272238918,0.03531243,202.0,201.95,0.03306944]
[1739272239318,0.03531243,202.0,201.98,4.9501]
[1739272240523,0.03531243,202.0,201.97,4.9504]
[1739272242624,0.03531243,202.0,201.95,0.03306944]
[1739272242827,0.03531243,202.0,201.99,4.9499]
[1739272244427,0.03531243,202.0,201.98,4.9502]
[1739272246526,0.03531243,202.0,201.96,8.42441284]
[1739272246729,0.03531243,202.0,201.97,4.9503]
[1739272247428,0.03531243,202.0,201.96,8.42441284]
[1739272248426,0.03531243,202.0,201.97,4.9504]
[1739272249128,0.03531243,202.0,201.96,13.37501284]
[1739272250830,4.98501243,202.0,201.96,13.37501284]
[1739272251026,0.03531243,202.0,201.96,8.42441284]
[1739272251221,8.42441284,202.07,201.98,8.42441284]
[1739272251427,8.42441284,202.07,202.02,8.42441284]
[1739272251428,4.948,202.07,202.02,8.42441284]
[1739272251926,4.9478,202.08,202.02,8.42441284]
[1739272252122,66.46673262,202.09,201.94,197.1511]
[1739272252429,10.01201284,202.15,202.08,8.42441284]
[1739272253029,4.9468,202.12,202.09,0.03375442]
[1739272254231,4.9472,202.1,202.09,0.03375442]
[1739272259439,4.9472,202.1,202.09,5.442e-05]
[1739272260237,4.9492,202.03,201.98,8.42441284]
[1739272260533,8.42441284,202.04,201.97,4.9504]
[1739272260736,4.9495,202.01,201.96,8.42441284]
[1739272261441,4.98383224,202.01,201.96,8.46228354]
[1739272261943,4.9501,201.99,201.96,0.0378707]
[1739272262340,13.37411284,202.0,201.96,0.0378707]
[1739272262540,8.42441284,202.0,201.96,0.0378707]
[1739272265842,4.9504,201.97,201.96,0.0378707]
[1739272267542,4.9504,201.97,201.96,7.07e-05]
[1739272271743,8.42441284,201.98,201.86,3.1251]
[1739272271950,4.9524,201.9,201.86,3.1251]
[1739272272543,8.42441284,201.91,201.84,8.42441284]
[1739272272743,8.42441284,201.93,201.86,8.42441284]
[1739272273044,0.0357181,201.9,201.86,8.42441284]
[1739272274247,0.0357181,201.9,201.86,13.37751284]
[1739272274447,0.0357181,201.9,201.86,8.42441284]
[1739272275739,0.0357181,201.9,201.86,13.37731284]
[1739272275937,0.0357181,201.9,201.88,8.42441284]
[1739272276144,4.9502,201.98,201.91,4.9517]
[1739272276444,8.42441284,201.99,201.92,8.42441284]
[1739272276851,4.9502,201.98,201.92,8.42441284]
[1739272277249,0.03669888,201.97,201.93,0.03749521]
[1739272278049,0.03669888,201.97,201.94,8.42441284]
[1739272278650,0.03669888,201.97,201.96,8.42441284]
[1739272279047,8.42441284,202.05,201.96,8.42441284]
[1739272279241,8.42441284,202.05,201.93,0.03749521]
[1739272279242,8.42441284,202.05,201.98,8.42441284]
[1739272279646,4.9488,202.04,201.98,8.42441284]
[1739272279846,8.42441284,202.03,201.96,8.42441284]
[1739272280050,8.42441284,202.01,201.94,8.42441284]
[1739272280352,8.42441284,202.01,201.97,0.03563309]
[1739272280752,0.03318162,202.02,201.97,0.03563309]
[1739272281350,4.9495,202.01,201.97,0.03563309]
[1739272282351,4.9498,202.0,201.97,0.03563309]
[1739272282954,4.9501,201.99,201.97,0.03563309]
[1739272283553,4.9497,202.0,201.97,0.03563309]
[1739272283953,0.03318162,202.02,201.97,0.03563309]
[1739272284154,0.03318162,202.02,201.97,4.98583309]
[1739272284949,0.03318162,202.02,201.97,0.03563309]
[1739272285258,8.42441284,202.01,201.97,0.03563309]
[1739272285452,4.9501,201.99,201.97,0.03563309]
[1739272285652,8.42441284,201.99,201.97,0.03563309]
[1739272286056,4.9502,201.98,201.97,0.03563309]
[1739272287154,4.9513,201.94,201.86,8.42441284]
[1739272287357,8.42441284,201.94,201.86,8.42441284]
[1739272287560,8.42441284,201.94,201.88,8.42441284]
[1739272287759,4.9515,201.93,201.88,8.42441284]
[1739272288458,4.98539205,201.93,201.88,0.03676415]
[1739272288658,0.03389205,201.93,201.88,8.46117699]
[1739272288958,0.03389205,201.93,201.88,13.41377699]
[1739272289260,0.03389205,201.93,201.88,8.46117699]
[1739272289559,0.03389205,201.93,201.91,4.9519]
[1739272291651,0.03389205,201.93,201.92,4.9517]
[1739272291960,8.42441284,202.01,201.92,8.42441284]
[1739272292262,8.42441284,202.05,201.98,8.42441284]
[1739272292960,4.9488,202.04,201.98,8.42441284]
[1739272293160,0.03739697,202.04,201.99,0.03516861]
[1739272293656,4.949,202.03,201.99,0.03516861]
[1739272295959,0.03739697,202.04,202.0,4.9495]
[1739272296857,4.949,202.03,201.99,4.98506861]
[1739272297062,0.03739697,202.04,201.99,0.03516861]
[1739272297368,0.03739697,202.04,202.01,4.9494]
[1739272297663,0.03739697,202.04,201.99,0.03516861]
[1739272297959,4.9478,202.08,202.02,4.949]
[1739272299160,0.03196106,202.07,202.03,0.03275411]
[1739272300062,4.9485,202.05,202.03,0.03275411]
[1739272300253,0.03196106,202.07,202.03,0.03275411]
[1739272301363,4.9483,202.06,202.03,0.03275411]
[1739272301961,0.03196106,202.07,202.03,0.03275411]
[1739272303157,4.9485,202.05,202.03,0.03275411]
[1739272303363,0.03196106,202.07,202.03,0.03275411]
[1739272304364,4.9485,202.06,202.03,0.03275411]
[1739272305361,4.97996106,202.07,202.03,4.98165411]
[1739272306464,4.97996106,202.07,202.03,0.03275411]
[1739272309467,4.9483,202.06,202.03,0.03275411]
[1739272309667,0.03196106,202.07,202.03,0.03275411]
[1739272310067,4.9483,202.06,202.03,0.03275411]
[1739272310865,4.97996106,202.07,202.03,0.03275411]
[1739272311065,0.03196106,202.07,202.03,13.26091661]
[1739272312172,0.03196106,202.07,202.03,18.20981661]
[1739272312773,0.03196106,202.07,202.03,13.26091661]
[1739272313568,0.03196106,202.07,202.03,0.03275411]
[1739272313872,0.03196106,202.07,202.05,8.4597888]
[1739272315474,0.03196106,202.07,202.03,8.49254291]
[1739272315770,4.9485,202.05,202.03,8.49254291]
[1739272316171,4.9483,202.06,202.03,8.49254291]
[1739272316568,0.03196106,202.07,202.03,8.49254291]
[1739272316773,4.9485,202.05,202.03,8.49254291]
[1739272316974,0.03196106,202.07,202.03,8.49254291]
[1739272317477,4.9483,202.06,202.03,8.49254291]
[1739272317879,0.03196106,202.07,202.03,8.49254291]
[1739272318081,4.9486,202.05,202.03,8.49254291]
[1739272318380,0.03196106,202.07,202.03,8.49254291]
[1739272319479,0.03196106,202.07,202.05,8.4597888]
[1739272320572,0.03196106,202.07,202.03,0.03275411]
[1739272320774,4.9487,202.04,202.03,0.03275411]
[1739272322587,0.03196106,202.07,202.03,0.03275411]
[1739272322787,4.9484,202.06,202.03,0.03275411]
[1739272322987,0.03196106,202.07,202.03,0.03275411]
[1739272323188,4.9487,202.05,202.03,0.03275411]
[1739272323590,0.03196106,202.07,202.03,0.03275411]
[1739272323790,4.9484,202.06,202.03,0.03275411]
[1739272324885,0.03196106,202.07,202.03,0.03275411]
[1739272325184,4.97996106,202.07,202.03,8.49254291]
[1739272327194,0.03196106,202.07,202.03,13.44144291]
[1739272328086,0.03196106,202.07,202.05,8.4597888]
[1739272333996,0.03196106,202.07,202.06,4.9482]
[1739272335596,4.9463,202.14,202.09,4.9474]
[1739272335796,8.4597888,202.18,202.12,8.4597888]
[1739272335997,82.46286765,202.19,202.15,8.4597888]
[1739272336194,4.9455,202.18,202.15,8.4597888]
[1739272336491,90.92265645,202.19,202.13,8.4597888]
[1739272336691,90.95796865,202.19,202.14,0.03578936]
[1739272336899,4.9458,202.16,202.14,0.03578936]
[1739272337098,8.4597888,202.17,202.14,0.03578936]
[1739272337797,82.49817985,202.19,202.14,0.03578936]
[1739272337798,13.4057888,202.15,202.14,0.03578936]
[1739272340796,8.4597888,202.15,202.06,1.4964]
[1739272341100,8.4597888,202.12,202.06,1.4964]
[1739272341295,8.4597888,202.12,202.05,8.4597888]
[1739272341496,4.9478,202.08,202.05,8.4597888]
[1739272342501,0.03248622,202.09,202.05,8.4597888]
[1739272342700,0.03248622,202.09,202.07,8.4597888]
[1739272345505,0.03248622,202.09,202.05,8.4597888]
[1739272345802,4.98018622,202.09,202.05,8.4597888]
[1739272347906,4.9482,202.07,202.04,0.03413729]
[1739272348104,0.03248622,202.09,202.04,0.03413729]
[1739272349104,4.9485,202.06,202.04,0.03413729]
[1739272349600,4.9485,202.05,202.04,0.03413729]
[1739272350206,8.4597888,202.08,202.04,0.03413729]
[1739272350508,0.03248622,202.09,202.05,8.4597888]
[1739272350808,0.03248622,202.09,202.07,8.4597888]
[1739272352001,0.03248622,202.09,202.05,8.4597888]
[1739272352401,0.03248622,202.09,202.07,8.4597888]
[1739272354111,0.03248622,202.09,202.07,13.4075888]
[1739272354311,0.03248622,202.09,202.07,8.4597888]
[1739272354914,4.9459,202.16,202.07,8.4597888]
[1739272355110,4.9459,202.16,202.12,8.4597888]
[1739272355905,4.98200163,202.16,202.12,8.49237945]
[1739272356107,0.03610163,202.16,202.12,8.49237945]
[1739272356311,0.03610163,202.16,202.14,8.4597888]
[1739272359818,0.03610163,202.16,202.14,13.4058888]
[1739272361115,0.03610163,202.16,202.14,8.4597888]
[1739272363013,0.03610163,202.16,202.14,13.4059888]
[1739272363416,0.03610163,202.16,202.15,4.946]
[1739272363626,8.4597888,202.26,202.14,8.4597888]
[1739272363920,8.4597888,202.26,202.19,8.4597888]
[1739272364815,8.4597888,202.26,202.2,0.03340265]
[1739272365414,4.9443,202.23,202.2,0.03340265]
[1739272366118,4.9443,202.22,202.2,0.03340265]
[1739272366514,1.514,202.27,202.2,0.03340265]
[1739272366515,8.4597888,202.28,202.21,8.4597888]
[1739272367117,4.9435,202.26,202.21,8.4597888]
[1739272367423,4.9435,202.26,202.23,8.4597888]
[1739272368421,4.9436,202.25,202.23,8.4597888]
[1739272368923,4.9438,202.24,202.22,0.03359116]
[1739272369119,8.4597888,202.28,202.22,0.03359116]
[1739272369821,4.9441,202.23,202.22,0.03359116]
[1739272375235,4.9441,202.23,202.22,9.116e-05]
[1739272387338,4.9457,202.17,202.11,9.9464888]
[1739272387639,8.4597888,202.18,202.11,14.8933888]
[1739272388141,8.4597888,202.2,202.13,8.4597888]
[1739272388341,8.4597888,202.2,202.11,1.4867]
[1739272388342,8.4597888,202.22,202.15,8.4597888]
[1739272388638,0.03524196,202.19,202.15,8.4597888]
[1739272388835,4.98034196,202.19,202.15,8.4597888]
[1739272391044,0.03524196,202.19,202.17,8.4597888]
[1739272391945,0.03524196,202.19,202.15,9.9238888]
[1739272392133,4.9456,202.17,202.15,9.9238888]
[1739272392337,0.03524196,202.19,202.15,9.9238888]
[1739272392835,4.9455,202.18,202.15,9.9238888]
[1739272394943,4.9455,202.18,202.15,8.4597888]
[1739272396338,4.9456,202.17,202.15,8.4597888]
[1739272396945,0.03524196,202.19,202.15,8.4597888]
[1739272397147,4.9453,202.18,202.15,8.4597888]
[1739272398047,0.03524196,202.19,202.15,8.4597888]
[1739272398246,0.03524196,202.19,202.14,0.03381067]
[1739272399041,4.9458,202.16,202.14,0.03381067]
[1739272400450,0.03524196,202.19,202.14,0.03381067]
[1739272400648,4.9457,202.17,202.14,0.03381067]
[1739272400851,0.03524196,202.19,202.15,8.4597888]
[1739272401049,0.03524196,202.19,202.17,8.4597888]
[1739272402343,0.03524196,202.19,202.15,8.4597888]
[1739272402751,0.03524196,202.19,202.14,0.03381067]
[1739272402952,8.4597888,202.18,202.14,0.03381067]
[1739272403452,4.946,202.15,202.14,0.03381067]
[1739272406956,14.8794888,202.18,202.14,0.03381067]
[1739272407855,13.4050888,202.18,202.14,0.03381067]
[1739272408753,8.4597888,202.18,202.14,0.03381067]
[1739272409652,0.03524196,202.19,202.14,0.03381067]
[1739272409855,0.03524196,202.19,202.14,4.98001067]
[1739272411450,0.03524196,202.19,202.14,0.03381067]
[1739272411654,0.03524196,202.19,202.15,4.946]
[1739272412555,0.03524196,202.19,202.14,0.03381067]
[1739272412755,0.03524196,202.19,202.18,4.9453]
[1739272414056,66.40530533,202.3,202.18,4.9453]
[1739272414057,66.40530533,202.3,202.18,13.20975229]
[1739272414356,71.34790533,202.3,202.21,13.20975229]
[1739272414853,71.34790533,202.3,202.24,4.9436]
[1739272415250,66.40530533,202.3,202.25,0.03376014]
[1739272415450,13.20975229,202.34,202.25,0.03376014]
[1739272415850,4.9421,202.32,202.26,4.9433]
[1739272416050,13.20975229,202.34,202.25,0.03376014]
[1739272416462,4.9422,202.31,202.25,4.97716014]
[1739272417858,4.9426,202.29,202.25,0.03376014]
[1739272418058,13.20975229,202.34,202.25,0.03376014]
[1739272418355,13.20975229,202.34,202.26,4.9433]
[1739272418558,13.20975229,202.34,202.25,0.03376014]
[1739272418863,1.4805,202.36,202.25,0.03376014]
[1739272419659,1.4805,202.36,202.27,4.943]
[1739272420072,1.4805,202.36,202.29,0.03584177]
[1739272420458,4.9422,202.31,202.29,0.03584177]
[1739272423366,4.9424,202.3,202.29,0.03584177]
[1739272424669,4.9422,202.31,202.29,0.03584177]
[1739272426467,4.9424,202.3,202.29,0.03584177]
[1739272429773,13.38881905,202.3,202.29,0.03584177]
[1739272430975,4.9424,202.3,202.29,0.03584177]
[1739272432174,8.44641905,202.32,202.29,0.03584177]
[1739272432876,4.9424,202.3,202.29,0.03584177]
[1739272433273,13.38881905,202.3,202.29,0.03584177]
[1739272433470,13.38881905,202.3,202.29,4.177e-05]
[1739272442188,4.9424,202.3,202.29,4.177e-05]
[1739272444087,4.9422,202.31,202.29,4.177e-05]
[1739272444287,0.03447999,202.32,202.29,4.177e-05]
[1739272444688,4.9421,202.31,202.29,4.177e-05]
[1739272445388,0.03447999,202.32,202.29,8.44646082]
[1739272445589,0.03447999,202.32,202.31,8.44641905]
[1739272445993,0.03447999,202.32,202.31,13.38851905]
[1739272446392,8.44641905,202.4,202.33,8.44641905]
[1739272446595,4.9406,202.38,202.33,8.44641905]
[1739272447093,8.44641905,202.4,202.33,8.44641905]
[1739272447293,4.9404,202.38,202.33,8.44641905]
[1739272447495,4.9404,202.38,202.34,0.03788948]
[1739272449594,4.9401,202.4,202.37,8.44641905]
[1739272450097,4.9397,202.41,202.39,8.44641905]
[1739272451696,4.9397,202.41,202.38,0.03248276]
[1739272452200,1.4716,202.48,202.38,0.03248276]
[1739272452399,4.9401,202.4,202.38,0.03248276]
[1739272454195,4.9402,202.39,202.38,0.03248276]
[1739272458601,4.9402,202.39,202.38,8.276e-05]
[1739272462204,26.35007024,202.4,202.25,1.5691]
[1739272462503,13.17503512,202.34,202.25,1.5691]
[1739272462903,4.9428,202.29,202.25,1.5691]
[1739272463302,4.97586744,202.29,202.25,1.60618099]
[1739272463904,4.9429,202.28,202.25,1.60618099]
[1739272465006,4.9432,202.27,202.25,1.60618099]
[1739272465207,4.9432,202.27,202.25,0.03708099]
[1739272465807,13.17503512,202.34,202.29,12.93637256]
[1739272466500,4.9424,202.3,202.29,12.93637256]
[1739272471607,13.38840951,202.3,202.29,12.93637256]
[1739272473212,4.9424,202.3,202.29,12.93637256]
[1739272474909,13.38840951,202.3,202.29,12.93637256]
[1739272476318,4.9424,202.3,202.29,12.93637256]
[1739272477623,8.44600951,202.34,202.29,12.93637256]
[1739272477820,4.9421,202.32,202.29,12.93637256]
[1739272478018,8.44600951,202.34,202.29,12.97310847]
[1739272478421,4.9423,202.31,202.29,12.97310847]
[1739272478626,8.44600951,202.34,202.29,12.97310847]
[1739272478822,8.44600951,202.32,202.29,12.97310847]
[1739272479721,4.9424,202.3,202.29,12.97310847]
[1739272481626,8.44600951,202.34,202.29,12.97310847]
[1739272481826,8.44600951,202.36,202.3,8.44600951]
[1739272482326,4.9417,202.33,202.31,0.03585895]
[1739272482932,4.9411,202.36,202.32,8.44600951]
[1739272483126,8.44600951,202.4,202.32,8.44600951]
[1739272483523,4.9409,202.37,202.32,13.38760951]
[1739272483824,4.9409,202.37,202.32,8.44600951]
[1739272484128,4.9404,202.39,202.34,8.44600951]
[1739272484522,4.9404,202.39,202.34,8.47936053]
[1739272484923,4.9404,202.39,202.34,13.42076053]
[1739272486022,8.44600951,202.42,202.34,8.47936053]
[1739272486230,8.44600951,202.4,202.34,0.03335102]
[1739272488326,4.9411,202.35,202.34,0.03335102]
[1739272505239,4.9411,202.35,202.34,5.102e-05]
[1739272510150,4.9431,202.27,202.26,3.0062]
[1739272511250,4.9421,202.31,202.26,3.0062]
[1739272511450,0.03168436,202.29,202.26,3.0062]
[1739272511749,0.03168436,202.29,202.28,8.44289723]
[1739272511953,4.9418,202.33,202.28,8.44289723]
[1739272512249,4.9418,202.33,202.28,13.38559723]
[1739272512444,8.44289723,202.37,202.32,8.44289723]
[1739272512647,8.44289723,202.4,202.32,8.44289723]
[1739272512850,8.44289723,202.4,202.34,8.44289723]
[1739272513050,8.44289723,202.4,202.34,8.47871149]
[1739272513250,4.9404,202.38,202.34,8.47871149]
[1739272514251,4.9409,202.36,202.34,0.03581426]
[1739272514449,8.44289723,202.4,202.34,0.03581426]
[1739272514748,8.44289723,202.36,202.34,0.03581426]
[1739272514968,8.44289723,202.36,202.3,8.44289723]
[1739272515251,8.44289723,202.36,202.33,0.03530255]
[1739272515649,4.9414,202.34,202.33,0.03530255]
[1739272516054,8.44289723,202.38,202.33,0.03530255]
[1739272516351,4.9409,202.36,202.32,8.44289723]
[1739272516552,8.44289723,202.38,202.33,0.03337975]
[1739272517652,4.9414,202.34,202.33,0.03337975]
[1739272517948,13.38429723,202.34,202.33,0.03337975]
[1739272518953,13.38429723,202.34,202.33,7.975e-05]
[1739272519454,13.38429723,202.34,202.27,1.517]
[1739272519455,4.9433,202.27,202.22,13.38709723]
[1739272519651,4.9433,202.27,202.22,14.84709723]
[1739272520351,8.44289723,202.29,202.22,14.84709723]
[1739272520748,0.03428042,202.29,202.25,28.41505351]
[1739272520943,4.9432,202.27,202.25,28.41505351]
[1739272521355,0.03428042,202.29,202.25,28.41505351]
[1739272521554,0.03428042,202.29,202.25,33.35855351]
[1739272521852,0.03428042,202.29,202.25,28.41505351]
[1739272522953,4.9428,202.28,202.25,28.41505351]
[1739272523253,0.03428042,202.29,202.25,28.41505351]
[1739272523655,8.44289723,202.36,202.28,8.44289723]
[1739272524257,4.9421,202.32,202.28,8.44289723]
[1739272524954,4.9421,202.32,202.28,8.47546819]
[1739272525164,4.9421,202.32,202.28,13.41826819]
[1739272525361,4.9417,202.33,202.28,8.47546819]
[1739272525956,4.9417,202.33,202.28,13.41826819]
[1739272526672,8.44289723,202.36,202.28,8.47546819]
[1739272526864,8.44289723,202.34,202.28,0.03257096]
[1739272527064,8.44289723,202.32,202.26,8.44289723]
[1739272527364,4.9421,202.31,202.29,0.0359273]
[1739272527560,8.44289723,202.34,202.26,8.44289723]
[1739272527760,8.44289723,202.36,202.28,8.47761156]
[1739272527963,8.44289723,202.36,202.3,8.44289723]
[1739272529562,8.44289723,202.36,202.28,8.47761156]
[1739272530567,4.9423,202.31,202.28,8.47761156]
[1739272530866,4.9423,202.31,202.28,8.44289723]
[1739272531165,4.9419,202.32,202.28,8.44289723]
[1739272531367,8.44289723,202.38,202.3,8.44289723]
[1739272531769,4.9415,202.34,202.3,8.44289723]
[1739272532668,4.9415,202.34,202.3,13.38519723]
[1739272533070,8.44289723,202.38,202.3,8.44289723]
[1739272533271,4.9412,202.35,202.31,4.9421]
[1739272533571,4.9412,202.35,202.3,8.44289723]
[1739272533765,4.9414,202.34,202.31,0.03553565]
[1739272534473,4.9411,202.35,202.31,4.97763565]
[1739272534965,8.44289723,202.38,202.32,8.44289723]
[1739272535170,4.9409,202.37,202.34,8.44289723]
[1739272538072,8.44289723,202.4,202.33,0.03475493]
[1739272538272,8.44289723,202.38,202.3,11.56579723]
[1739272538475,8.44289723,202.38,202.34,0.03630689]
[1739272539877,4.9412,202.35,202.34,0.03630689]
[1739272541178,4.9412,202.35,202.34,6.89e-06]
[1739272544375,4.9433,202.26,202.25,28.38089]
[1739272545378,4.9433,202.26,202.25,20.09569]
[1739272546179,0.03657467,202.28,202.25,20.09569]
[1739272546878,4.9431,202.27,202.25,20.09569]
[1739272547479,0.03657467,202.28,202.25,20.09569]
[1739272548075,0.03657467,202.28,202.26,13.38619723]
[1739272548473,0.03657467,202.28,202.26,8.44289723]
[1739272549879,0.03657467,202.28,202.25,20.09569]
[1739272550379,4.9431,202.27,202.25,20.09569]
[1739272550587,0.03657467,202.28,202.25,20.09569]
[1739272550786,0.03657467,202.28,202.26,8.44289723]
[1739272551989,8.44289723,202.37,202.26,8.44289723]
[1739272552291,8.44289723,202.37,202.29,8.44289723]
[1739272552478,4.9415,202.34,202.3,4.9424]
[1739272552683,4.9415,202.34,202.31,8.44289723]
[1739272553394,4.9416,202.33,202.3,0.03718775]
[1739272555391,79.56374437,202.4,202.3,0.03718775]
[1739272555593,4.9414,202.34,202.3,0.03718775]
[1739272556695,4.9411,202.35,202.3,4.97948775]
[1739272556892,13.18706219,202.4,202.3,0.03718775]
[1739272557392,4.9406,202.37,202.3,0.03718775]
[1739272558294,4.9406,202.37,202.32,4.9418]
[1739272558794,13.18706219,202.4,202.3,0.03718775]
[1739272560496,4.9416,202.34,202.3,0.03718775]
[1739272560794,13.18706219,202.4,202.3,0.03718775]
[1739272561195,4.9406,202.37,202.3,0.03718775]
[1739272561497,13.18706219,202.4,202.3,0.03718775]
[1739272561997,4.9421,202.32,202.3,0.03718775]
[1739272562297,13.18706219,202.4,202.3,0.03718775]
[1739272562694,3.1806,202.42,202.3,0.03718775]
[1739272563400,4.9408,202.37,202.32,4.9417]
[1739272563819,4.9409,202.36,202.32,4.97829168]
[1739272564101,4.9409,202.36,202.32,0.03659168]
[1739272566599,3.1806,202.42,202.32,0.03659168]
[1739272566899,4.9416,202.33,202.32,0.03659168]
[1739272568100,4.9416,202.33,202.32,9.168e-05]
[1739272572607,4.9433,202.26,202.25,20.09569]
[1739272572906,13.18706219,202.31,202.25,20.09569]
[1739272573098,4.9433,202.26,202.25,20.09569]
[1739272576011,4.9431,202.27,202.25,20.09569]
[1739272576207,0.03526452,202.28,202.25,20.09569]
[1739272577515,4.9433,202.26,202.25,20.09569]
[1739272583514,4.97816452,202.28,202.25,20.09569]
[1739272583913,0.03526452,202.28,202.25,20.09569]
[1739272584313,0.03526452,202.28,202.26,4.9432]
[1739272584708,0.03526452,202.28,202.25,20.09569]
[1739272585409,4.9431,202.27,202.25,20.09569]
[1739272585609,0.03526452,202.28,202.25,20.09569]
[1739272586421,4.9431,202.27,202.25,20.09569]
[1739272586921,0.03526452,202.28,202.25,20.09569]
[1739272589122,0.03526452,202.28,202.26,4.9431]
[1739272589318,0.03526452,202.28,202.25,20.09569]
[1739272591423,4.9433,202.26,202.25,20.09569]
[1739272591825,4.9433,202.26,202.25,12.54879]
[1739272592125,4.9438,202.24,202.23,0.0369917]
[1739272593730,4.945,202.19,202.15,6.84508952]
[1739272594832,0.03798672,202.19,202.18,4.9453]
[1739272597226,0.03798672,202.19,202.17,1.527]
[1739272597731,0.03798672,202.19,202.15,0.03646783]
[1739272598932,0.03798672,202.19,202.15,4.98246783]
[1739272599331,0.03798672,202.19,202.15,0.03646783]
[1739272601732,0.03798672,202.19,202.16,4.9458]
[1739272602234,0.03798672,202.19,202.15,0.03646783]
[1739272602435,0.03798672,202.19,202.17,4.9455]
[1739272602935,0.03798672,202.19,202.15,0.03646783]
[1739272603129,0.03798672,202.19,202.18,4.9453]
[1739272607735,0.03798672,202.19,202.18,13.39430338]
[1739272612144,0.03798672,202.19,202.18,4.9453]
[1739272613242,0.03798672,202.19,202.17,4.9455]
[1739272614145,0.03798672,202.19,202.16,14.89410338]
[1739272614342,0.03798672,202.19,202.16,13.39470338]
[1739272616444,0.03798672,202.19,202.17,4.9455]
[1739272618454,0.03798672,202.19,202.18,13.39430338]
[1739272619452,0.03798672,202.19,202.16,8.44900338]
[1739272619952,0.03798672,202.19,202.15,0.03646783]
[1739272620453,4.9455,202.18,202.15,0.03646783]
[1739272620662,0.03798672,202.19,202.15,0.03646783]
[1739272622752,4.9454,202.18,202.15,0.03646783]
[1739272623748,4.9453,202.18,202.15,0.03646783]
[1739272624654,0.03798672,202.19,202.16,8.44900338]
[1739272624952,0.03798672,202.19,202.18,8.44900338]
[1739272625749,0.03798672,202.19,202.18,13.39430338]
[1739272627449,8.44900338,202.27,202.18,8.44900338]
[1739272627655,4.9434,202.26,202.21,13.39350338]
[1739272628653,0.03576035,202.26,202.23,8.44900338]
[1739272629950,0.03576035,202.26,202.25,8.44900338]
[1739272634464,0.03576035,202.26,202.25,13.39260338]
[1739272635257,0.03576035,202.26,202.23,8.44900338]
[1739272636763,0.03576035,202.26,202.24,4.9437]
[1739272638658,0.03576035,202.26,202.25,13.39260338]
[1739272638856,8.44900338,202.37,202.25,8.44900338]
[1739272639155,8.44900338,202.37,202.31,8.44900338]
[1739272639757,8.44900338,202.37,202.29,8.44900338]
[1739272639964,8.44900338,202.37,202.32,0.03803838]
[1739272640162,8.44900338,202.35,202.32,0.03803838]
[1739272640463,4.9414,202.34,202.32,0.03803838]
[1739272641756,8.44900338,202.37,202.32,0.03803838]
[1739272641958,4.9416,202.33,202.32,0.03803838]
[1739272643667,4.9413,202.35,202.32,0.03803838]
[1739272644164,4.9409,202.36,202.32,4.97983838]
[1739272644369,8.44900338,202.39,202.32,0.03803838]
[1739272644856,8.44900338,202.37,202.32,0.03803838]
[1739272645162,8.44900338,202.35,202.32,0.03803838]
[1739272645361,4.9416,202.33,202.32,0.03803838]
[1739272646160,13.39060338,202.33,202.32,3.838e-05]
[1739272653373,4.9416,202.33,202.32,3.838e-05]
[1739272653773,0.03561977,202.35,202.32,3.838e-05]
[1739272655597,13.22832387,202.35,202.32,3.838e-05]
[1739272655776,4.9416,202.33,202.32,3.838e-05]
[1739272674393,4.9441,202.24,202.22,1.5466]
[1739272675500,4.98072341,202.25,202.22,1.5466]
[1739272676190,0.03712341,202.25,202.23,13.3907337]
[1739272677598,0.03712341,202.25,202.23,8.4467337]
[1739272678798,0.03712341,202.25,202.23,13.3907337]
[1739272679299,0.03712341,202.25,202.22,1.5466]
[1739272680802,0.03712341,202.25,202.22,6.4909]
[1739272681506,0.03712341,202.25,202.23,8.4467337]
[1739272681892,0.03712341,202.25,202.21,0.03677256]
[1739272682097,4.9442,202.23,202.21,0.03677256]
[1739272684199,4.9439,202.24,202.21,0.03677256]
[1739272684898,0.03712341,202.25,202.21,0.03677256]
[1739272685101,0.03712341,202.25,202.21,8.48350626]
[1739272685403,0.03712341,202.25,202.23,8.4467337]